bitfinex/quotes_BTCUSD_20260117
["timestamp","ask_amount","ask_price","bid_price","bid_amount"]
[1768661130655,0.02257874,95403.0,95402.0,0.06289176]
[1768661131245,0.02257874,95403.0,95402.0,0.01048196]
[1768661131446,0.02257874,95403.0,95402.0,0.06289176]
[1768661132426,0.02257874,95403.0,95402.0,0.01048196]
[1768661132840,0.02257874,95403.0,95402.0,0.01028782]
[1768661133047,0.02257874,95403.0,95402.0,0.01009368]
[1768661133888,0.06288989,95405.0,95402.0,0.01009368]
[1768661134103,0.01048185,95403.0,95400.0,0.01048218]
[1768661134309,0.02263103,95402.0,95400.0,0.01048218]
[1768661134731,0.01048174,95404.0,95400.0,0.06289287]
[1768661134938,0.01048174,95404.0,95401.0,0.01048207]
[1768661135391,0.02263133,95403.0,95401.0,0.01048207]
[1768661135598,0.02263133,95402.0,95401.0,0.01048207]
[1768661136539,0.08552309,95402.0,95398.0,0.1374824]
[1768661136742,0.05240814,95406.0,95400.0,0.41269867]
[1768661136947,0.20962285,95410.0,95400.0,0.46510949]
[1768661137112,0.05240808,95406.0,95400.0,0.46510949]
[1768661137319,0.01048108,95410.0,95405.0,0.01048163]
[1768661137528,0.01048108,95410.0,95404.0,0.01048174]
[1768661137529,0.0104813,95408.0,95404.0,0.01048174]
[1768661137862,0.01048141,95407.0,95404.0,0.01048174]
[1768661138411,0.01048141,95407.0,95403.0,0.01048185]
[1768661138628,0.06288863,95407.0,95403.0,0.01048185]
[1768661138821,0.06288863,95407.0,95403.0,0.00501803]
[1768661139026,0.01048152,95406.0,95403.0,0.00501803]
[1768661140764,0.01048141,95407.0,95403.0,0.00501803]
[1768661141180,0.06288887,95407.0,95403.0,0.00501803]
[1768661142586,0.01048141,95407.0,95403.0,0.00501803]
[1768661142799,0.06288863,95407.0,95403.0,0.00501803]
[1768661143241,0.01048141,95407.0,95404.0,0.06289033]
[1768661143462,0.0104813,95408.0,95404.0,0.01048174]
[1768661143686,0.01048141,95407.0,95404.0,0.01048174]
[1768661144112,0.01048152,95406.0,95403.0,0.00501803]
[1768661145193,0.06288913,95406.0,95403.0,0.00501803]
[1768661145406,0.01048152,95406.0,95402.0,0.06289162]
[1768661146296,0.01048152,95406.0,95403.0,0.01048185]
[1768661146703,0.01048152,95406.0,95403.0,0.06289092]
[1768661146943,0.01048141,95407.0,95402.0,0.01048196]
[1768661147636,0.01048141,95407.0,95403.0,0.05240924]
[1768661148291,0.06288918,95406.0,95403.0,0.01048185]
[1768661148509,0.01048174,95404.0,95401.0,0.01048207]
[1768661148725,0.02263325,95403.0,95401.0,0.01048207]
[1768661148927,0.02263325,95402.0,95401.0,0.01048207]
[1768661150010,0.02263325,95402.0,95401.0,0.13748207]
[1768661150237,0.06289047,95404.0,95401.0,0.127]
[1768661150451,0.02263335,95403.0,95401.0,0.127]
[1768661150666,0.01048174,95404.0,95401.0,0.127]
[1768661150875,0.02263335,95403.0,95401.0,0.127]
[1768661151088,0.01048174,95404.0,95401.0,0.127]
[1768661151295,0.02263335,95403.0,95401.0,0.127]
[1768661151487,0.01048174,95404.0,95401.0,0.13748207]
[1768661151710,0.02263343,95403.0,95401.0,0.13748207]
[1768661151926,0.05240927,95403.0,95401.0,0.127]
[1768661152527,0.06289058,95404.0,95401.0,0.127]
[1768661152746,0.02263353,95403.0,95401.0,0.127]
[1768661152867,0.06289058,95404.0,95401.0,0.127]
[1768661153067,0.02263353,95403.0,95401.0,0.127]
[1768661153276,0.01048174,95404.0,95401.0,0.127]
[1768661153479,0.02263371,95403.0,95401.0,0.127]
[1768661153680,0.06289056,95404.0,95401.0,0.127]
[1768661153909,0.07504342,95403.0,95401.0,0.127]
[1768661154110,0.05240971,95403.0,95401.0,0.127]
[1768661154996,0.01048174,95404.0,95401.0,0.127]
[1768661155209,0.02263393,95403.0,95401.0,0.127]
[1768661155404,0.01048174,95404.0,95401.0,0.127]
[1768661155611,0.02263421,95403.0,95401.0,0.127]
[1768661155813,0.01048174,95404.0,95401.0,0.127]
[1768661156014,0.02263421,95403.0,95401.0,0.127]
[1768661156247,0.02263421,95402.0,95401.0,0.127]
[1768661160265,0.01048174,95404.0,95401.0,0.13748207]
[1768661160510,0.01048163,95405.0,95401.0,0.13748207]
[1768661161369,0.01048163,95405.0,95402.0,0.01048196]
[1768661162129,0.01048163,95405.0,95401.0,0.13748207]
[1768661162753,0.06288989,95405.0,95401.0,0.13748207]
[1768661162958,0.06288989,95405.0,95401.0,0.127]
[1768661163700,0.01048152,95406.0,95401.0,0.13748207]
[1768661163908,0.01048152,95406.0,95402.0,0.05240927]
[1768661164301,0.06288923,95406.0,95401.0,0.18989238]
[1768661165214,0.01048163,95405.0,95402.0,0.01048196]
[1768661167478,0.01048152,95406.0,95403.0,0.01048185]
[1768661168609,0.01048152,95406.0,95403.0,0.06289104]
[1768661170350,0.01048152,95406.0,95402.0,0.01048196]
[1768661170761,0.01048152,95406.0,95403.0,0.05240919]
[1768661171333,0.01048152,95406.0,95403.0,0.06289104]
[1768661171754,0.01048152,95406.0,95403.0,0.01048185]
[1768661172348,0.02263839,95405.0,95403.0,0.01048185]
[1768661172549,0.02263839,95404.0,95403.0,0.0628911]
[1768661173418,0.02263839,95404.0,95403.0,0.01048185]
[1768661176729,0.02263839,95404.0,95403.0,0.0628911]
[1768661178677,0.02263839,95404.0,95403.0,0.01048185]
[1768661179588,0.02263839,95404.0,95403.0,0.0628911]
[1768661180028,0.02263839,95404.0,95403.0,0.01048185]
[1768661180267,0.02263839,95404.0,95403.0,0.0628911]
[1768661182440,0.01048108,95410.0,95406.0,0.06288902]
[1768661182918,0.02828916,95413.0,95409.0,0.05240595]
[1768661183106,0.01048075,95413.0,95409.0,0.05240591]
[1768661183353,0.01048064,95414.0,95408.0,0.0104813]
[1768661183556,0.09117211,95416.0,95410.0,0.0524054]
[1768661183784,0.02828916,95417.0,95413.0,0.01048075]
[1768661184008,0.05240287,95415.0,95411.0,0.01048097]
[1768661184229,0.06288389,95414.0,95410.0,0.127]
[1768661184671,0.01048075,95413.0,95410.0,0.127]
[1768661185087,0.01048075,95413.0,95410.0,0.13748108]
[1768661185295,0.01048064,95414.0,95411.0,0.01048097]
[1768661186155,0.01048064,95414.0,95410.0,0.13748108]
[1768661186355,0.01048009,95419.0,95415.0,0.01048053]
[1768661186567,0.06288028,95420.0,95415.0,0.0079742]
[1768661186827,0.06288082,95419.0,95415.0,0.0079742]
[1768661187038,0.03876903,95421.0,95416.0,0.06288207]
[1768661187245,0.03876903,95421.0,95417.0,0.01048031]
[1768661187451,0.01047987,95421.0,95417.0,0.127]
[1768661187833,0.01047998,95420.0,95417.0,0.13748031]
[1768661188068,0.01047998,95420.0,95417.0,0.1374018]
[1768661189431,0.06288005,95420.0,95417.0,0.12692149]
[1768661190031,0.06288005,95420.0,95417.0,0.12684297]
[1768661190191,0.06288005,95420.0,95417.0,0.12676445]
[1768661190806,0.05240073,95419.0,95417.0,0.12676445]
[1768661191446,0.06288005,95420.0,95417.0,0.12676445]
[1768661192817,0.01047998,95420.0,95417.0,0.12676445]
[1768661193225,0.06288012,95420.0,95417.0,0.12676445]
[1768661194348,0.02261798,95419.0,95417.0,0.12676445]
[1768661194547,0.02261798,95418.0,95417.0,0.12676445]
[1768661196339,0.02261798,95418.0,95417.0,0.17916601]
[1768661197178,0.02261798,95418.0,95417.0,0.12676445]
[1768661197376,0.02261798,95418.0,95417.0,0.04187261]
[1768661198225,0.02222805,95418.0,95417.0,0.04187261]
[1768661198431,0.02222805,95418.0,95417.0,0.09427417]
[1768661199268,0.02222805,95418.0,95417.0,0.04187261]
[1768661199509,0.02222805,95418.0,95417.0,0.09427417]
[1768661200329,0.02222805,95418.0,95417.0,0.04187261]
[1768661201555,0.02183795,95418.0,95416.0,0.03767994]
[1768661201709,0.01047998,95420.0,95417.0,0.01048031]
[1768661202128,0.01047998,95420.0,95417.0,0.06288182]
[1768661202305,0.0104802,95418.0,95414.0,0.01048064]
[1768661202492,0.06288174,95418.0,95414.0,0.01048064]
[1768661203282,0.01048031,95417.0,95414.0,0.06288365]
[1768661204319,0.01048042,95416.0,95411.0,0.01048097]
[1768661204498,0.01048053,95415.0,95410.0,0.13748108]
[1768661204702,0.0524047,95412.0,95408.0,0.0104813]
[1768661204905,0.06288617,95411.0,95407.0,0.0001749]
[1768661205108,0.01048108,95410.0,95407.0,0.0001749]
[1768661205718,0.06288658,95410.0,95407.0,0.0001749]
[1768661207439,0.05240602,95409.0,95407.0,0.0001749]
[1768661207817,0.06288675,95410.0,95407.0,0.0001749]
[1768661208022,0.05240639,95409.0,95407.0,0.0001749]
[1768661208435,0.0524087,95404.0,95403.0,1e-08]
[1768661210339,0.01048152,95406.0,95403.0,1e-08]
[1768661210892,0.05240815,95405.0,95403.0,1e-08]
[1768661211202,0.06288925,95406.0,95403.0,1e-08]
[1768661212855,0.06288916,95406.0,95403.0,1e-08]
[1768661214276,0.0524087,95404.0,95403.0,1e-08]
[1768661214707,0.07503596,95404.0,95403.0,1e-08]
[1768661214918,0.02262726,95404.0,95403.0,1e-08]
[1768661215815,0.07503596,95404.0,95403.0,1e-08]
[1768661217395,0.02262726,95404.0,95403.0,1e-08]
[1768661218256,0.07503596,95404.0,95403.0,1e-08]
[1768661221718,0.02262726,95404.0,95403.0,1e-08]
[1768661223067,0.07503596,95404.0,95403.0,1e-08]
[1768661224849,0.06289247,95401.0,95398.0,0.0106423]
[1768661225051,0.02262726,95400.0,95398.0,0.0001599]
[1768661225246,0.02262726,95399.0,95398.0,0.0001599]
[1768661225681,0.07503871,95399.0,95398.0,0.0001599]
[1768661226257,0.05241145,95399.0,95398.0,0.0001599]
[1768661226489,0.07503562,95399.0,95398.0,0.0001599]
[1768661226811,0.07503562,95399.0,95397.0,4.715e-05]
[1768661227010,0.05241145,95399.0,95397.0,4.715e-05]
[1768661227406,0.06289316,95400.0,95397.0,4.715e-05]
[1768661227583,0.02262226,95399.0,95397.0,4.715e-05]
[1768661227744,0.06289316,95400.0,95397.0,4.715e-05]
[1768661227945,0.02262226,95399.0,95397.0,4.715e-05]
[1768661228287,0.01048218,95400.0,95397.0,4.715e-05]
[1768661228485,0.02262162,95399.0,95397.0,4.715e-05]
[1768661228727,0.06289313,95400.0,95397.0,4.715e-05]
[1768661228949,0.02262162,95399.0,95397.0,4.715e-05]
[1768661229150,0.06289313,95400.0,95397.0,4.715e-05]
[1768661229341,0.02262162,95399.0,95397.0,4.715e-05]
[1768661229636,0.06289313,95400.0,95397.0,4.715e-05]
[1768661229839,0.0226212,95399.0,95397.0,4.715e-05]
[1768661230046,0.06289313,95400.0,95397.0,4.715e-05]
[1768661230170,0.0226212,95399.0,95397.0,4.715e-05]
[1768661230374,0.06289313,95400.0,95397.0,4.715e-05]
[1768661230571,0.02262096,95399.0,95397.0,4.715e-05]
[1768661230831,0.01048218,95400.0,95397.0,4.715e-05]
[1768661230974,0.022621,95399.0,95397.0,4.715e-05]
[1768661231185,0.01048218,95400.0,95397.0,4.715e-05]
[1768661231390,0.02262127,95399.0,95397.0,4.715e-05]
[1768661231595,0.01048218,95400.0,95397.0,4.715e-05]
[1768661231793,0.02262087,95399.0,95397.0,4.715e-05]
[1768661231995,0.01048218,95400.0,95397.0,4.715e-05]
[1768661232201,0.02262087,95399.0,95397.0,4.715e-05]
[1768661232409,0.01048218,95400.0,95397.0,4.715e-05]
[1768661232623,0.02262108,95399.0,95397.0,4.715e-05]
[1768661232816,0.01048218,95400.0,95397.0,4.715e-05]
[1768661233066,0.02262108,95399.0,95397.0,4.715e-05]
[1768661233284,0.01048218,95400.0,95397.0,4.715e-05]
[1768661233488,0.02262149,95399.0,95397.0,4.715e-05]
[1768661233640,0.01048218,95400.0,95397.0,4.715e-05]
[1768661233846,0.02262149,95399.0,95397.0,4.715e-05]
[1768661234141,0.06289312,95400.0,95397.0,4.715e-05]
[1768661234355,0.02262149,95399.0,95397.0,4.715e-05]
[1768661234555,0.06289312,95400.0,95397.0,4.715e-05]
[1768661234773,0.02262213,95399.0,95397.0,4.715e-05]
[1768661234978,0.06289312,95400.0,95397.0,4.715e-05]
[1768661235196,0.02262213,95399.0,95397.0,4.715e-05]
[1768661235409,0.01048218,95400.0,95397.0,4.715e-05]
[1768661235604,0.02262285,95399.0,95397.0,4.715e-05]
[1768661235818,0.01048218,95400.0,95397.0,4.715e-05]
[1768661236203,0.02262284,95399.0,95397.0,4.715e-05]
[1768661236434,0.01048218,95400.0,95397.0,4.715e-05]
[1768661236636,0.02262382,95399.0,95397.0,4.715e-05]
[1768661236854,0.01048218,95400.0,95397.0,4.715e-05]
[1768661237050,0.02262382,95399.0,95397.0,4.715e-05]
[1768661237266,0.06289308,95400.0,95397.0,4.715e-05]
[1768661237501,0.02262511,95399.0,95397.0,4.715e-05]
[1768661237705,0.06289308,95400.0,95397.0,4.715e-05]
[1768661237897,0.02262511,95399.0,95397.0,4.715e-05]
[1768661238100,0.06289308,95400.0,95397.0,4.715e-05]
[1768661238246,0.02262511,95399.0,95397.0,4.715e-05]
[1768661238439,0.01048218,95400.0,95397.0,4.715e-05]
[1768661238650,0.02262676,95399.0,95397.0,4.715e-05]
[1768661238868,0.06289322,95400.0,95397.0,4.715e-05]
[1768661239074,0.02262676,95399.0,95397.0,4.715e-05]
[1768661239271,0.01048218,95400.0,95397.0,4.715e-05]
[1768661239471,0.07503831,95399.0,95397.0,4.715e-05]
[1768661239631,0.05241148,95399.0,95397.0,4.715e-05]
[1768661239834,0.02262683,95398.0,95397.0,4.715e-05]
[1768661240910,0.07503883,95398.0,95397.0,4.715e-05]
[1768661241106,0.02262683,95398.0,95397.0,4.715e-05]
[1768661243377,0.07503883,95398.0,95397.0,4.715e-05]
[1768661243587,0.02262683,95398.0,95397.0,4.715e-05]
[1768661245619,0.07503883,95398.0,95397.0,4.715e-05]
[1768661247273,0.01048272,95395.0,95393.0,0.127]
[1768661247558,0.0524133,95396.0,95392.0,0.0004]
[1768661247713,0.0524133,95396.0,95392.0,0.00054191]
[1768661248469,0.01048272,95395.0,95392.0,0.00054191]
[1768661249008,0.01048272,95395.0,95392.0,0.01102496]
[1768661249202,0.0104825,95397.0,95393.0,0.01048294]
[1768661249430,0.0104825,95397.0,95393.0,0.06270268]
[1768661249826,0.01048261,95396.0,95393.0,0.010288]
[1768661250812,0.0104825,95397.0,95393.0,0.010288]
[1768661251016,0.0104825,95397.0,95393.0,0.06270261]
[1768661252021,0.0104825,95397.0,95394.0,0.01048283]
[1768661253190,0.01048229,95399.0,95396.0,0.01048261]
[1768661253459,0.02263381,95398.0,95396.0,0.01048261]
[1768661253603,0.01048229,95399.0,95396.0,0.01048261]
[1768661253786,0.02263381,95398.0,95396.0,0.01048261]
[1768661253994,0.01048229,95399.0,95396.0,0.01048261]
[1768661254195,0.02263382,95398.0,95396.0,0.01048261]
[1768661254393,0.01048218,95400.0,95396.0,0.01048261]
[1768661254596,0.0226363,95399.0,95396.0,0.06289528]
[1768661254818,0.0226363,95398.0,95396.0,0.01048261]
[1768661255054,0.0226363,95397.0,95396.0,0.01048261]
[1768661255441,0.0226363,95397.0,95394.0,0.01048283]
[1768661255642,0.0104824,95398.0,95394.0,0.01048283]
[1768661255983,0.02263624,95397.0,95394.0,0.01048283]
[1768661256117,0.0104825,95397.0,95394.0,0.01048283]
[1768661256326,0.0104824,95398.0,95395.0,0.01048272]
[1768661256521,0.02263617,95397.0,95395.0,0.01048272]
[1768661256723,0.02263617,95397.0,95394.0,0.01048283]
[1768661256724,0.0104825,95397.0,95394.0,0.01048283]
[1768661256950,0.01048261,95396.0,95392.0,0.01102496]
[1768661257987,0.01048272,95395.0,95392.0,0.01102496]
[1768661258597,0.0628964,95395.0,95392.0,0.01102496]
[1768661259393,0.01048272,95395.0,95392.0,0.00054191]
[1768661259648,0.05241419,95394.0,95392.0,0.00054191]
[1768661260225,0.02263605,95393.0,95392.0,0.00054191]
[1768661260459,0.07505079,95393.0,95392.0,0.00054191]
[1768661260644,0.02263605,95393.0,95392.0,0.00054191]
[1768661260990,0.01048349,95388.0,95385.0,0.0004]
[1768661261195,0.02263605,95387.0,95385.0,0.01096308]
[1768661261462,0.02263605,95386.0,95385.0,0.01096308]
[1768661261651,0.02263605,95386.0,95385.0,0.00047926]
[1768661262050,0.03311976,95386.0,95383.0,5.655e-05]
[1768661262254,0.03311987,95385.0,95382.0,0.0004]
[1768661262454,0.02263605,95384.0,95382.0,0.0004]
[1768661262630,0.02263605,95383.0,95382.0,0.0004]
[1768661262842,0.01053832,95385.0,95382.0,0.01088415]
[1768661263044,5.45e-05,95385.0,95382.0,0.01088415]
[1768661263249,0.01048426,95381.0,95375.0,0.01048492]
[1768661263565,0.01048448,95379.0,95376.0,0.01048481]
[1768661263766,0.01048448,95379.0,95375.0,0.01048492]
[1768661263916,0.06290698,95379.0,95375.0,0.01048492]
[1768661264313,0.01048448,95379.0,95376.0,0.01048481]
[1768661264573,0.01048459,95378.0,95373.0,0.0629106]
[1768661264742,0.0104847,95377.0,95374.0,0.01048503]
[1768661264949,0.01048459,95378.0,95374.0,0.01048503]
[1768661265934,0.01048459,95378.0,95375.0,0.01029003]
[1768661266344,0.01048426,95381.0,95375.0,0.01029003]
[1768661266345,0.01048437,95380.0,95376.0,0.01048481]
[1768661267013,0.06290447,95383.0,95377.0,0.0104847]
[1768661267241,5.45e-05,95385.0,95382.0,0.05242031]
[1768661267444,0.0225964,95384.0,95383.0,0.05242023]
[1768661267650,0.37873056,95390.0,95386.0,0.01048371]
[1768661267867,0.37873056,95390.0,95387.0,0.0104836]
[1768661268073,0.37873056,95390.0,95387.0,0.06290114]
[1768661268273,0.37873056,95390.0,95387.0,0.0104836]
[1768661268481,0.38921383,95390.0,95387.0,0.0104836]
[1768661268773,0.38921383,95390.0,95387.0,0.01028871]
[1768661268981,0.38921383,95390.0,95387.0,0.01009382]
[1768661270047,0.38921383,95390.0,95387.0,0.00984231]
[1768661270249,0.06289483,95398.0,95392.0,0.01048305]
[1768661270494,0.02828021,95397.0,95393.0,0.05241443]
[1768661270867,0.02828021,95398.0,95395.0,0.01048272]
[1768661271066,0.01048229,95399.0,95392.0,0.01048305]
[1768661271252,0.0104824,95398.0,95395.0,0.01048272]
[1768661271651,0.13752218,95400.0,95397.0,0.0104825]
[1768661272712,0.0001599,95403.0,95399.0,0.01048229]
[1768661273096,0.0001599,95403.0,95399.0,0.06289373]
[1768661273275,0.01064175,95403.0,95400.0,0.01048218]
[1768661274109,0.01064175,95403.0,95399.0,0.01048229]
[1768661274110,0.06305128,95403.0,95399.0,0.01048229]
[1768661274326,0.01048207,95401.0,95397.0,0.0104825]
[1768661275105,0.0105564,95401.0,95397.0,0.0104825]
[1768661275325,0.0105564,95401.0,95397.0,0.06289496]
[1768661275724,0.0105564,95401.0,95398.0,0.01028753]
[1768661276798,0.01048218,95400.0,95396.0,0.01048261]
[1768661277015,0.06289314,95400.0,95396.0,0.01048261]
[1768661278242,0.01048218,95400.0,95396.0,0.0628957]
[1768661278441,0.01048218,95400.0,95397.0,0.0104825]
[1768661278680,0.0105564,95401.0,95397.0,0.0104825]
[1768661278891,0.0105564,95401.0,95397.0,0.01028765]
[1768661279107,0.0105564,95401.0,95391.0,0.01048316]
[1768661279311,0.0104825,95397.0,95394.0,0.01048283]
[1768661279847,0.01048283,95394.0,95389.0,0.01048338]
[1768661280051,0.01048338,95389.0,95385.0,0.01048382]
[1768661280243,0.01048338,95389.0,95381.0,0.01048426]
[1768661280579,0.05241749,95388.0,95384.0,0.01048393]
[1768661280949,0.01048338,95389.0,95384.0,0.01048393]
[1768661281153,0.01048338,95389.0,95385.0,0.01048382]
[1768661281368,0.05241758,95388.0,95385.0,0.01048382]
[1768661281861,0.01048338,95389.0,95385.0,0.01048382]
[1768661282053,0.05241749,95388.0,95384.0,0.01048393]
[1768661282762,0.02259314,95387.0,95384.0,0.01048393]
[1768661283714,0.01048382,95385.0,95382.0,0.39152252]
[1768661284169,0.01048382,95385.0,95382.0,0.01048415]
[1768661284789,0.01048371,95386.0,95383.0,0.01048404]
[1768661285136,0.06290252,95386.0,95382.0,0.01048415]
[1768661285355,0.01048371,95386.0,95382.0,0.01028934]
[1768661286757,0.06290248,95386.0,95382.0,0.01028934]
[1768661287188,0.01048371,95386.0,95382.0,0.39132771]
[1768661287549,0.01048371,95386.0,95382.0,0.44374825]
[1768661288191,0.01048371,95386.0,95382.0,0.39132771]
[1768661288192,0.06290278,95386.0,95382.0,0.39132771]
[1768661288596,0.06290278,95386.0,95382.0,0.39113294]
[1768661288803,0.01048371,95386.0,95382.0,0.39113294]
[1768661289422,0.01048349,95388.0,95383.0,0.01048404]
[1768661289616,0.02261177,95387.0,95383.0,0.01048404]
[1768661289817,0.01048338,95389.0,95385.0,0.01048382]
[1768661290016,0.02261176,95388.0,95385.0,0.06290269]
[1768661290257,0.02261176,95387.0,95385.0,0.06290269]
[1768661290433,0.01048338,95389.0,95386.0,0.0629023]
[1768661290633,0.02261605,95388.0,95386.0,0.0629023]
[1768661290836,0.02261605,95387.0,95386.0,0.0629023]
[1768661297286,0.02261605,95387.0,95384.0,0.01048393]
[1768661297482,0.02261605,95386.0,95385.0,0.05241901]
[1768661297943,0.02261605,95386.0,95384.0,0.01048393]
[1768661298133,0.02261605,95385.0,95383.0,0.01048404]
[1768661298313,0.02261605,95385.0,95382.0,0.01009457]
[1768661298314,0.02261605,95384.0,95382.0,0.01009457]
[1768661298505,0.02261605,95383.0,95382.0,0.01009457]
[1768661300244,0.01048382,95385.0,95382.0,0.01009457]
[1768661300469,0.02261891,95384.0,95382.0,0.01009457]
[1768661300652,0.01048382,95385.0,95382.0,0.06251529]
[1768661300850,0.02261891,95384.0,95382.0,0.06251529]
[1768661301050,0.01048382,95385.0,95382.0,0.01048415]
[1768661301260,0.05242077,95383.0,95377.0,0.0104847]
[1768661302023,0.39308047,95384.0,95378.0,0.01048459]
[1768661302429,0.01048404,95383.0,95380.0,0.01048437]
[1768661302627,0.38259654,95384.0,95381.0,0.05242127]
[1768661303650,0.01048382,95385.0,95381.0,0.05242127]
[1768661303848,0.01048382,95385.0,95380.0,0.01048437]
[1768661303849,0.01048382,95385.0,95382.0,0.01048415]
[1768661304438,0.06290177,95387.0,95382.0,0.01048415]
[1768661304625,0.02262083,95386.0,95385.0,0.01048382]
[1768661304822,0.02262083,95386.0,95385.0,0.06290283]
[1768661304972,0.01048305,95392.0,95388.0,0.0629007]
[1768661306751,0.01048305,95392.0,95388.0,0.01048349]
[1768661307132,0.01048294,95393.0,95388.0,0.01048349]
[1768661307353,0.49349644,95394.0,95391.0,0.01048316]
[1768661307552,0.49349644,95394.0,95391.0,0.06289855]
[1768661307866,0.49349644,95394.0,95391.0,0.01048316]
[1768661308082,0.01048294,95393.0,95389.0,0.01048338]
[1768661308646,0.49349644,95394.0,95390.0,0.01048327]
[1768661309049,0.49349644,95394.0,95390.0,0.0628992]
[1768661309612,0.55639349,95394.0,95391.0,0.01048316]
[1768661309980,0.01048305,95392.0,95388.0,0.06290055]
[1768661310362,0.01048305,95392.0,95388.0,0.06290097]
[1768661311193,0.01048305,95392.0,95389.0,0.01048338]
[1768661311527,0.0628994,95391.0,95387.0,0.0104836]
[1768661311643,0.01048316,95391.0,95388.0,0.01048349]
[1768661312312,0.01048305,95392.0,95388.0,0.01048349]
[1768661312733,0.01048305,95392.0,95388.0,0.06290096]
[1768661313386,0.01048294,95393.0,95389.0,0.01048338]
[1768661314260,0.01048294,95393.0,95389.0,0.06290016]
[1768661314654,0.01048294,95393.0,95389.0,0.01048338]
[1768661315682,0.0628978,95393.0,95389.0,0.01048338]
[1768661316087,0.01048294,95393.0,95389.0,0.01048338]
[1768661316894,0.01048305,95392.0,95387.0,0.0104836]
[1768661317245,0.02263143,95391.0,95387.0,0.0104836]
[1768661317463,0.02263143,95390.0,95387.0,0.06290119]
[1768661317675,0.02263143,95389.0,95387.0,0.06290119]
[1768661317890,0.02263143,95388.0,95387.0,0.06290154]
[1768661318987,0.02263143,95388.0,95385.0,0.01048382]
[1768661319186,0.02263143,95387.0,95386.0,0.05241859]
[1768661320140,0.02263143,95387.0,95385.0,0.06290282]
[1768661320338,0.02263143,95386.0,95385.0,0.06290282]
[1768661320546,0.01048316,95391.0,95388.0,0.01048349]
[1768661321959,0.01048316,95391.0,95387.0,0.05241776]
[1768661322584,0.01048316,95391.0,95386.0,0.06290214]
[1768661322991,0.01048327,95390.0,95386.0,0.06290217]
[1768661323433,0.01048327,95390.0,95387.0,0.06290162]
[1768661324320,0.01048316,95391.0,95387.0,0.06290162]
[1768661324744,0.01048327,95390.0,95386.0,0.06290222]
[1768661325176,0.01048327,95390.0,95386.0,0.01048371]
[1768661325350,0.01048327,95390.0,95387.0,0.0104836]
[1768661326755,0.06289994,95390.0,95386.0,0.01048371]
[1768661327786,0.01048327,95390.0,95386.0,0.01048371]
[1768661329237,0.06290016,95390.0,95386.0,0.01048371]
[1768661329413,0.01048338,95389.0,95386.0,0.01048371]
[1768661330055,0.01048327,95390.0,95386.0,0.01048371]
[1768661330581,0.01048327,95390.0,95386.0,0.05241845]
[1768661330824,0.01048327,95390.0,95385.0,0.06290284]
[1768661331286,0.01048327,95390.0,95387.0,0.0104836]
[1768661332546,0.02263269,95389.0,95387.0,0.0104836]
[1768661332748,0.02263269,95388.0,95387.0,0.06290163]
[1768661334363,0.02263269,95388.0,95387.0,0.0104836]
[1768661334620,0.02263269,95388.0,95387.0,0.01043832]
[1768661335416,0.02263269,95388.0,95387.0,0.01039303]
[1768661336204,0.02263269,95388.0,95387.0,0.06281107]
[1768661336599,0.02263269,95388.0,95387.0,0.01034775]
[1768661337829,0.02263269,95388.0,95387.0,0.06276579]
[1768661338110,0.02263269,95388.0,95387.0,0.01034775]
[1768661339205,0.02263269,95388.0,95387.0,0.06276579]
[1768661339419,0.02263269,95388.0,95387.0,0.01034775]
[1768661339639,0.02263269,95388.0,95387.0,0.06276579]
[1768661340258,0.02263269,95388.0,95387.0,0.01034775]
[1768661340912,0.02263269,95388.0,95387.0,0.06276579]
[1768661342921,0.01048272,95395.0,95391.0,0.01048316]
[1768661343353,0.01048272,95395.0,95391.0,0.06289896]
[1768661343566,0.01048272,95395.0,95391.0,0.01048316]
[1768661344454,0.0104824,95398.0,95392.0,0.01048305]
[1768661344726,0.06289559,95397.0,95393.0,0.01048294]
[1768661345553,0.01048261,95396.0,95392.0,0.01048305]
[1768661346272,0.01048261,95396.0,95392.0,0.06289814]
[1768661346676,0.06289574,95396.0,95392.0,0.01048305]
[1768661347014,0.06289649,95395.0,95392.0,0.01048305]
[1768661347621,0.01048294,95393.0,95388.0,0.01048349]
[1768661347873,0.01048294,95393.0,95389.0,0.01048338]
[1768661348079,0.01048305,95392.0,95389.0,0.01048338]
[1768661349696,0.01048272,95395.0,95390.0,0.01048327]
[1768661349934,0.01048426,95381.0,95375.0,0.05242414]
[1768661350138,0.00968501,95381.0,95378.0,0.01048459]
[1768661353490,0.06210644,95381.0,95378.0,0.01048459]
[1768661353692,0.06210644,95381.0,95377.0,0.0104847]
[1768661353893,0.06210644,95381.0,95377.0,0.1375247]
[1768661354117,0.00968501,95381.0,95377.0,0.1375247]
[1768661355711,0.00968501,95381.0,95377.0,0.1899481]
[1768661355909,0.00968501,95381.0,95377.0,0.1375247]
[1768661356634,0.00968501,95381.0,95378.0,0.01048459]
[1768661356843,0.00968501,95381.0,95378.0,0.01043931]
[1768661358196,0.06290432,95383.0,95378.0,0.01043931]
[1768661358197,0.01048404,95383.0,95379.0,0.01048448]
[1768661358396,0.0226279,95382.0,95379.0,0.01048448]
[1768661358635,0.01048415,95382.0,95379.0,0.01048448]
[1768661359714,0.01048283,95394.0,95385.0,0.35601871]
[1768661359937,0.0331095,95393.0,95389.0,0.01048338]
[1768661360145,0.02262656,95392.0,95390.0,0.01048327]
[1768661360359,0.01048294,95393.0,95390.0,0.01048327]
[1768661360360,0.02262656,95391.0,95390.0,0.01048327]
[1768661360763,0.02262656,95391.0,95389.0,0.01048338]
[1768661360967,0.02262656,95390.0,95388.0,0.01048349]
[1768661361170,0.02262656,95389.0,95388.0,0.01048349]
[1768661361373,0.01048305,95392.0,95388.0,0.01048349]
[1768661361740,0.01048316,95391.0,95387.0,0.0104836]
[1768661362011,0.01048305,95392.0,95388.0,0.01048349]
[1768661362214,0.01048294,95393.0,95389.0,0.01048338]
[1768661362632,0.01048316,95391.0,95387.0,0.0104836]
[1768661362804,0.01048316,95391.0,95388.0,0.01048349]
[1768661363021,0.01048294,95393.0,95389.0,0.01048338]
[1768661363166,0.01048305,95392.0,95388.0,0.01048349]
[1768661363796,0.01048305,95392.0,95389.0,0.01048338]
[1768661364008,0.01048294,95393.0,95390.0,0.01048327]
[1768661364219,0.01048305,95392.0,95387.0,0.0104836]
[1768661364425,0.01048305,95392.0,95389.0,0.01048338]
[1768661364625,0.01048294,95393.0,95389.0,0.01048338]
[1768661364902,0.01048283,95394.0,95390.0,0.01048327]
[1768661365036,0.01048283,95394.0,95391.0,0.01048316]
[1768661365459,0.01048283,95394.0,95391.0,0.062899]
[1768661365659,0.01048283,95394.0,95391.0,0.01048316]
[1768661366696,0.01048283,95394.0,95389.0,0.35382187]
[1768661366697,0.01048294,95393.0,95389.0,0.35382187]
[1768661367028,0.01048294,95393.0,95390.0,0.01048327]
[1768661368562,0.01048294,95393.0,95390.0,0.06289958]
[1768661369004,0.01048283,95394.0,95391.0,0.01048316]
[1768661370267,0.06289581,95396.0,95392.0,0.01048305]
[1768661370462,0.06289581,95396.0,95391.0,0.01048316]
[1768661370669,0.01048261,95396.0,95393.0,0.01048294]
[1768661372424,0.06289571,95396.0,95393.0,0.01048294]
[1768661372758,0.06289571,95396.0,95392.0,0.01048305]
[1768661373344,0.02262583,95395.0,95392.0,0.01048305]